fUST/lending_fUST_20240905
["ID","MTS","AMOUNT","RATE_DAILY","PERIOD"]
[337166530,1725468843210,-826.12,0.00024733,3]
[337166531,1725468843235,-342125.16276126,0.00024733,3]
[337166536,1725468970492,-300.0,0.00023427,2]
[337166537,1725468970518,-300.0,0.00023427,2]
[337166538,1725468970544,-8475.0,0.00023428,2]
[337166551,1725469758163,-166.74068032,0.00022441,2]
[337166592,1725469832536,-302.45563732,0.0002215,2]
[337166594,1725469832547,-302.45563732,0.00022372,2]
[337166596,1725469832556,-50.04150568,0.00022441,2]
[337166598,1725469832566,-300.0,0.00022456,2]
[337166599,1725469832575,-300.0,0.00022456,2]
[337166601,1725469832585,-5011.56713328,0.00022457,2]
[337166680,1725469839201,-9072.53265027,0.00022457,2]
[337166690,1725469841252,-10815.90021645,0.00022457,2]
[337166691,1725469841262,-302.45563732,0.00022593,2]
[337166692,1725469841272,-250.0,0.00022787,2]
[337166693,1725469841282,-302.45563732,0.00022815,2]
[337166694,1725469841292,-250.0,0.00022849,2]
[337166695,1725469841301,-250.0,0.00022912,2]
[337166696,1725469841312,-250.0,0.00022974,2]
[337166697,1725469841321,-440.83868085,0.00023036,2]
[337166698,1725469841332,-250.0,0.00023037,2]
[337166699,1725469841342,-250.0,0.00023099,2]
[337166700,1725469841352,-179.007296,0.00023125,2]
[337166701,1725469841362,-250.0,0.00023162,2]
[337166702,1725469841372,-250.0,0.00023224,2]
[337166703,1725469841382,-250.0,0.00023287,2]
[337166704,1725469841392,-250.0,0.00023349,2]
[337166705,1725469841402,-250.0,0.00023412,2]
[337166706,1725469841416,-250.0,0.00023474,2]
[337166707,1725469841425,-250.0,0.00023537,2]
[337166708,1725469841435,-250.0,0.00023599,2]
[337166709,1725469841449,-250.0,0.00023662,2]
[337166710,1725469841459,-279.26578236,0.00023691,7]
[337166711,1725469841469,-250.0,0.00023724,2]
[337166712,1725469841480,-5606.7881451,0.00023749,2]
[337166713,1725469841491,-465.00053416,0.00023755,2]
[337166714,1725469841501,-250.0,0.00023787,2]
[337166715,1725469841511,-250.0,0.00023849,2]
[337166716,1725469841521,-250.0,0.00023912,2]
[337166717,1725469841531,-250.0,0.00023974,2]
[337166718,1725469841540,-5606.7881451,0.0002404,2]
[337166719,1725469841550,-5606.7881451,0.00024349,2]
[337166720,1725469841561,-312.0,0.00024391,2]
[337166721,1725469841571,-5606.78814513,0.00024493,2]
[337166722,1725469841582,-333.71160577,0.00024576,2]
[337166723,1725469841592,-333.71160574,0.00024577,2]
[337166724,1725469841603,-333.71160574,0.00024577,2]
[337166725,1725469841613,-333.71160574,0.00024578,2]
[337166726,1725469841623,-333.71160574,0.00024578,2]
[337166727,1725469841632,-1165.53344017,0.00024578,2]
[337166728,1725469841646,-1127.2722105,0.00024578,2]
[337166729,1725469841656,-1048.03036105,0.0002458,2]
[337166730,1725469841667,-173.46,0.00024655,3]
[337166731,1725469841677,-520.42,0.00024655,3]
[337166732,1725469841687,-200.0,0.00024658,15]
[337166733,1725469841699,-702.177931,0.00024658,2]
[337166734,1725469841709,-500.0,0.00024663,2]
[337166735,1725469841719,-170.89330773,0.00024663,2]
[337166736,1725469841731,-500.0,0.00024663,2]
[337166737,1725469841741,-500.0,0.00024663,2]
[337166738,1725469841751,-500.0,0.00024663,2]
[337166739,1725469841762,-500.0,0.00024663,2]
[337166740,1725469841772,-500.0,0.00024663,2]
[337166741,1725469841785,-500.0,0.00024663,2]
[337166742,1725469841795,-500.0,0.00024663,2]
[337166743,1725469841806,-500.0,0.00024663,2]
[337166744,1725469841816,-500.0,0.00024663,2]
[337166745,1725469841826,-500.0,0.00024663,2]
[337166746,1725469841836,-500.0,0.00024663,2]
[337166747,1725469841846,-500.0,0.00024663,2]
[337166748,1725469841856,-500.0,0.00024663,2]
[337166749,1725469841866,-500.0,0.00024663,2]
[337166750,1725469841876,-500.0,0.00024663,2]
[337166751,1725469841886,-500.0,0.00024663,2]
[337166752,1725469841897,-500.0,0.00024663,2]
[337166753,1725469841907,-500.0,0.00024663,2]
[337166754,1725469841918,-615.8118153,0.00024663,2]
[337166755,1725469841928,-326.04904487,0.00024663,2]
[337166756,1725469841938,-500.0,0.00024663,2]
[337166757,1725469841951,-500.0,0.00024663,2]
[337166758,1725469841961,-500.0,0.00024663,2]
[337166759,1725469841972,-500.0,0.00024663,2]
[337166760,1725469841983,-500.0,0.00024663,2]
[337166761,1725469841996,-500.0,0.00024663,2]
[337166762,1725469842006,-500.0,0.00024663,2]
[337166763,1725469842017,-500.0,0.00024663,2]
[337166764,1725469842026,-500.0,0.00024663,2]
[337166765,1725469842036,-500.0,0.00024663,2]
[337166766,1725469842046,-500.0,0.00024663,2]
[337166767,1725469842056,-500.0,0.00024663,2]
[337166768,1725469842068,-500.0,0.00024663,2]
[337166769,1725469842078,-500.0,0.00024663,2]
[337166770,1725469842088,-500.0,0.00024663,2]
[337166771,1725469842098,-500.0,0.00024663,2]
[337166772,1725469842108,-500.0,0.00024663,2]
[337166773,1725469842118,-500.0,0.00024663,2]
[337166774,1725469842128,-500.0,0.00024663,2]
[337166775,1725469842138,-500.0,0.00024663,2]
[337166776,1725469842153,-500.0,0.00024663,2]
[337166777,1725469842164,-500.0,0.00024663,2]
[337166778,1725469842176,-500.0,0.00024663,2]
[337166779,1725469842186,-500.0,0.00024663,2]
[337166780,1725469842196,-500.0,0.00024663,2]
[337166781,1725469842206,-500.0,0.00024663,2]
[337166782,1725469842215,-500.0,0.00024663,2]
[337166783,1725469842225,-500.0,0.00024663,2]
[337166784,1725469842235,-500.0,0.00024663,2]
[337166785,1725469842245,-500.0,0.00024663,2]
[337166786,1725469842254,-500.0,0.00024663,2]
[337166787,1725469842264,-500.0,0.00024663,2]
[337166788,1725469842274,-500.0,0.00024663,2]
[337166789,1725469842284,-500.0,0.00024663,2]
[337166790,1725469842294,-500.0,0.00024663,2]
[337166791,1725469842304,-500.0,0.00024663,2]
[337166792,1725469842314,-500.0,0.00024663,2]
[337166793,1725469842324,-500.0,0.00024663,2]
[337166794,1725469842334,-500.0,0.00024663,2]
[337166795,1725469842343,-500.0,0.00024663,2]
[337166796,1725469842353,-500.0,0.00024663,2]
[337166797,1725469842364,-693.86,0.00024663,3]
[337166798,1725469842375,-159333.570357,0.00024665,3]
[337166799,1725469842385,-38303.9081163,0.00024665,2]
[337166800,1725469842396,-1387.72,0.00024665,3]
[337166801,1725469842406,-346.93,0.00024665,3]
[337166802,1725469842418,-500.0,0.00024665,2]
[337166803,1725469842429,-270.06371988,0.00024665,2]
[337166804,1725469842439,-500.0,0.00024665,2]
[337166805,1725469842450,-500.0,0.00024665,2]
[337166806,1725469842460,-250.0,0.00024665,2]
[337166807,1725469842470,-500.0,0.00024665,2]
[337166808,1725469842480,-500.0,0.00024665,2]
[337166809,1725469842490,-600.0,0.00024665,2]
[337166810,1725469842500,-500.0,0.00024665,2]
[337166811,1725469842512,-500.0,0.00024665,2]
[337166812,1725469842522,-500.0,0.00024665,2]
[337166813,1725469842533,-500.0,0.00024665,2]
[337166814,1725469842543,-500.0,0.00024665,2]
[337166815,1725469842555,-500.0,0.00024665,2]
[337166816,1725469842565,-500.0,0.00024665,2]
[337166817,1725469842575,-302.92944808,0.00024665,2]
[337166818,1725469842584,-494.06667026,0.00024665,2]
[337166819,1725469842594,-500.0,0.00024665,2]
[337166820,1725469842604,-500.0,0.00024665,2]
[337166821,1725469842613,-500.0,0.00024665,2]
[337166822,1725469842623,-500.0,0.00024665,2]
[337166823,1725469842633,-500.0,0.00024665,2]
[337166824,1725469842642,-500.0,0.00024665,2]
[337166825,1725469842652,-500.0,0.00024665,2]
[337166826,1725469842662,-500.0,0.00024665,2]
[337166827,1725469842671,-316.50912197,0.00024665,2]
[337166828,1725469842681,-500.0,0.00024665,2]
[337166829,1725469842690,-500.0,0.00024665,2]
[337166830,1725469842701,-500.0,0.00024665,2]
[337166831,1725469842710,-500.0,0.00024665,2]
[337166832,1725469842720,-500.0,0.00024665,2]
[337166833,1725469842730,-500.0,0.00024665,2]
[337166834,1725469842740,-500.0,0.00024665,2]
[337166835,1725469842750,-500.0,0.00024665,2]
[337166836,1725469842760,-540.16871219,0.00024665,2]
[337166837,1725469842770,-500.0,0.00024665,2]
[337166838,1725469842780,-500.0,0.00024665,2]
[337166839,1725469842790,-500.0,0.00024665,2]
[337166841,1725469843077,-300.0,0.00024665,2]
[337166842,1725469843094,-500.0,0.00024665,2]
[337166843,1725469843112,-500.0,0.00024665,2]
[337166844,1725469843124,-591.69756906,0.00024665,2]
[337166845,1725469843134,-1255.94,0.00024666,3]
[337166846,1725469843144,-5019.93521622,0.00024666,3]
[337166847,1725469843194,-154313.63514078,0.00024666,3]
[337166848,1725469843205,-32196.95950826,0.00024666,15]
[337166849,1725469843216,-159333.570357,0.00024666,3]
[337166850,1725469843229,-76607.8162325,0.00024666,2]
[337166851,1725469843241,-253.5430995,0.00024673,2]
[337166852,1725469843254,-500.0,0.00024673,2]
[337166853,1725469843265,-500.0,0.00024673,2]
[337166854,1725469843275,-500.0,0.00024673,2]
[337166855,1725469843285,-161.11629007,0.00024673,2]
[337166856,1725469843295,-278.96842659,0.00024673,2]
[337166857,1725469843305,-500.0,0.00024673,2]
[337166858,1725469843316,-844.19028741,0.00024699,2]
[337166859,1725469843326,-50106.34765194,0.000247,2]
[337166861,1725469843336,-30000.0,0.000247,2]
[337166862,1725469843347,-41093.5751195,0.000247,2]
[337166863,1725469843357,-150.112233,0.000247,3]
[337166864,1725469843366,-150.112233,0.000247,4]
[337166865,1725469843376,-150.112233,0.000247,5]
[337166866,1725469843386,-150.112233,0.000247,2]
[337166867,1725469843395,-150.112233,0.000247,5]
[337166868,1725469843405,-150.112233,0.000247,2]
[337166869,1725469843414,-150.112233,0.000247,2]
[337166870,1725469843424,-150.112233,0.000247,3]
[337166871,1725469843433,-150.112233,0.000247,2]
[337166872,1725469843445,-150.112233,0.000247,2]
[337166873,1725469843456,-150.112233,0.000247,5]
[337166874,1725469843466,-150.112233,0.000247,4]
[337166875,1725469843476,-150.112233,0.000247,3]
[337166876,1725469843486,-150.112233,0.000247,2]
[337166877,1725469843495,-150.112233,0.000247,2]
[337166878,1725469843505,-150.112233,0.000247,2]
[337166879,1725469843515,-232.035073,0.000247,5]
[337166880,1725469843525,-151.0,0.000247,7]
[337166881,1725469843535,-150.112233,0.000247,3]
[337166882,1725469843544,-150.112239,0.000247,2]
[337166883,1725469843555,-420.0,0.00024702,2]
[337166884,1725469843565,-151.0,0.00024723,2]
[337166885,1725469843574,-151.0,0.00024723,2]
[337166886,1725469843584,-152.574795,0.00024723,7]
[337166887,1725469843594,-152.671603,0.00024723,7]
[337166888,1725469843604,-151.0,0.00024723,7]
[337166889,1725469843614,-151.0,0.00024723,7]
[337166890,1725469843623,-343.857222,0.00024723,2]
[337166891,1725469843634,-343.857222,0.00024723,2]
[337166892,1725469843647,-151.0,0.00024723,7]
[337166893,1725469843658,-151.0,0.00024723,7]
[337166894,1725469843668,-189678.2252329,0.00024743,2]
[337166964,1725469846806,-177.87,0.00024656,3]
[337166965,1725469846816,-116253.68170628,0.00024743,2]
[337166966,1725469846827,-151.0,0.00024743,7]
[337166967,1725469846836,-151.0,0.00024743,2]
[337166968,1725469846847,-252.108064,0.00024743,2]
[337166969,1725469846857,-151.0,0.00024743,7]
[337166970,1725469846867,-151.0,0.00024743,7]
[337166971,1725469846877,-343.857222,0.00024743,2]
[337166972,1725469846887,-343.857222,0.00024743,2]
[337166973,1725469846896,-151.0,0.00024743,7]
[337166974,1725469846906,-151.0,0.00024743,7]
[337166975,1725469846916,-1677.983435,0.00024743,7]
[337166976,1725469846927,-1677.983435,0.00024743,7]
[337166977,1725469846937,-151.0,0.00024743,7]
[337166978,1725469846948,-151.0,0.00024743,7]
[337166979,1725469846957,-151.0,0.00024743,7]
[337166980,1725469846968,-1819.445854,0.00024743,7]
[337166981,1725469846979,-1819.445854,0.00024743,7]
[337166982,1725469846992,-151.0,0.00024743,7]
[337166983,1725469847003,-151.0,0.00024743,7]
[337166984,1725469847012,-151.0,0.00024743,7]
[337166985,1725469847023,-151.0,0.00024743,7]
[337166986,1725469847033,-232.713779,0.00024743,7]
[337166987,1725469847042,-3211.730987,0.00024743,7]
[337166988,1725469847053,-3211.730987,0.00024743,7]
[337166989,1725469847063,-151.0,0.00024743,7]
[337166990,1725469847074,-2408.464307,0.00024743,7]
[337166991,1725469847084,-0.1341275,0.00024743,7]
[337167032,1725470995471,500.0,0.00026671,120]
[337167033,1725470996225,500.0,0.00026671,120]
[337167034,1725470997246,500.0,0.00026671,120]
[337167035,1725470997789,500.0,0.00026671,120]
[337167261,1725471045858,-163.0,0.00022,2]
[337167262,1725471045868,-181.826953,0.00022311,2]
[337167263,1725471045878,-248.6345995,0.00022393,2]
[337167264,1725471045888,-250.0,0.00022417,2]
[337167265,1725471045897,-250.0,0.00022478,2]
[337167266,1725471045907,-250.0,0.0002254,2]
[337167267,1725471045916,-250.0,0.00022601,2]
[337167268,1725471045925,-250.0,0.00022663,2]
[337167269,1725471045935,-250.0,0.00022724,2]
[337167270,1725471045944,-250.0,0.00022786,2]
[337167271,1725471045959,-250.0,0.00022847,2]
[337167272,1725471045968,-250.0,0.00022909,2]
[337167273,1725471045978,-250.0,0.0002297,2]
[337167274,1725471045987,-163.0,0.00023014,2]
[337167275,1725471045997,-250.0,0.00023032,2]
[337167276,1725471046007,-250.0,0.00023093,2]
[337167277,1725471046017,-250.0,0.00023155,2]
[337167278,1725471046026,-250.0,0.00023216,2]
[337167279,1725471046036,-250.0,0.00023277,2]
[337167280,1725471046045,-250.0,0.00023339,2]
[337167281,1725471046055,-166.941125,0.0002339,2]
[337167282,1725471046065,-250.0,0.000234,2]
[337167283,1725471046075,-300.0,0.00023457,2]
[337167284,1725471046085,-24900.0,0.00023458,2]
[337167285,1725471046094,-250.0,0.00023462,2]
[337167286,1725471046104,-3000.0,0.00023479,2]
[337167287,1725471046114,-250.0,0.00023523,2]
[337167288,1725471046125,-192.41243596,0.00023559,2]
[337167289,1725471046135,-2722.30880928,0.00023559,2]
[337167290,1725471046144,-250.0,0.00023585,2]
[337167291,1725471046153,-153.0,0.00024,2]
[337167292,1725471046163,-164.0,0.00024164,2]
[337167293,1725471046172,-604.60969359,0.00024275,6]
[337167294,1725471046182,-58987.39663949,0.000249,2]
[337167295,1725471046192,-13824.17,0.00024931,3]
[337167296,1725471046201,-841.04,0.00024941,3]
[337167297,1725471046211,-16589.0,0.00024941,3]
[337167298,1725471046221,-465.00002671,0.00024942,2]
[337167299,1725471046230,-767.67,0.00024951,3]
[337167300,1725471046240,-19906.8,0.00024951,3]
[337167301,1725471046250,-420.52,0.00024961,3]
[337167302,1725471046259,-210.26,0.00024961,3]
[337167303,1725471046270,-630.79,0.00024961,3]
[337167304,1725471046279,-500.0,0.00024971,2]
[337167305,1725471046290,-500.0,0.00024971,2]
[337167306,1725471046300,-500.0,0.00024971,2]
[337167307,1725471046309,-500.0,0.00024971,2]
[337167308,1725471046319,-500.0,0.00024971,2]
[337167309,1725471046328,-500.0,0.00024971,2]
[337167310,1725471046338,-500.0,0.00024971,2]
[337167311,1725471046348,-500.0,0.00024971,2]
[337167312,1725471046358,-500.0,0.00024971,2]
[337167313,1725471046368,-500.0,0.00024971,2]
[337167314,1725471046379,-500.0,0.00024971,2]
[337167315,1725471046392,-500.0,0.00024971,2]
[337167316,1725471046402,-500.0,0.00024971,2]
[337167317,1725471046411,-500.0,0.00024971,2]
[337167318,1725471046421,-630.56179873,0.00024971,2]
[337167319,1725471046431,-500.0,0.00024971,2]
[337167320,1725471046441,-500.0,0.00024971,2]
[337167321,1725471046451,-500.0,0.00024971,2]
[337167322,1725471046462,-500.0,0.00024971,2]
[337167323,1725471046472,-500.0,0.00024971,2]
[337167324,1725471046482,-500.0,0.00024971,2]
[337167325,1725471046492,-500.0,0.00024971,2]
[337167326,1725471046502,-17428.20782824,0.00024972,3]
[337167327,1725471063425,500.0,0.00026671,120]
[337167328,1725471064187,500.0,0.00026671,120]
[337167329,1725471064976,500.0,0.00026671,120]
[337167330,1725471065728,500.0,0.00026671,120]
[337167331,1725471066495,500.0,0.00026671,120]
[337167332,1725471067265,500.0,0.00026671,120]
[337167333,1725471068037,500.0,0.00026671,120]
[337167334,1725471069942,500.0,0.00026671,120]
[337167335,1725471072099,500.0,0.00026671,120]
[337167336,1725471074160,500.0,0.00026671,120]
[337167337,1725471074949,500.0,0.00026671,120]
[337167338,1725471075710,500.0,0.00026671,120]
[337167340,1725471076606,500.0,0.00026671,120]
[337167341,1725471077372,500.0,0.00026671,120]
[337167342,1725471078143,500.0,0.00026671,120]
[337167343,1725471080025,500.0,0.00026671,120]
[337167344,1725471080789,500.0,0.00026671,120]
[337167345,1725471081572,500.0,0.00026671,120]
[337167346,1725471082697,500.0,0.00026671,120]
[337167347,1725471083092,500.0,0.00026671,120]
[337167348,1725471084099,577.18,0.00026671,120]
[337167349,1725471150858,500.0,0.00026671,120]
[337167350,1725471151621,500.0,0.00026671,120]
[337167351,1725471152387,500.0,0.00026671,120]
[337167375,1725472011154,-156.3419628,0.00023388,2]
[337167416,1725472232202,-302.33493269,0.00023271,4]
[337167417,1725472232213,-4.0808464,0.00023388,2]
[337167418,1725472232222,-300.0,0.00023598,2]
[337167419,1725472232232,-3592.39094598,0.00023599,2]
[337167420,1725472232245,-591.8739997,0.00023599,2]
[337167636,1725472243030,-17.3713292,0.00023599,2]
[337167985,1725473440277,-184.909125,0.00022288,2]
[337167986,1725473440288,-300.0,0.00022716,2]
[337167987,1725473440297,-24900.0,0.00022717,2]
[337167989,1725473440307,-166.941125,0.00023152,2]
[337167990,1725473440316,-250.0,0.00023155,2]
[337167991,1725473440326,-250.0,0.00023219,2]
[337167992,1725473440335,-250.0,0.00023282,2]
[337167993,1725473440345,-250.0,0.00023346,2]
[337167994,1725473440355,-250.0,0.00023409,2]
[337167995,1725473440364,-250.0,0.00023473,2]
[337167996,1725473440373,-150.0,0.00023491,2]
[337167997,1725473440382,-250.0,0.00023536,2]
[337167998,1725473440392,-306.0,0.00023578,2]
[337167999,1725473440401,-250.0,0.000236,2]
[337168000,1725473440411,-250.0,0.00023663,2]
[337168001,1725473440420,-250.0,0.00023727,2]
[337168002,1725473440431,-250.0,0.0002379,2]
[337168003,1725473440440,-250.0,0.00023854,2]
[337168004,1725473440450,-250.0,0.00023917,2]
[337168005,1725473440459,-250.0,0.00023981,2]
[337168006,1725473440469,-250.0,0.00024044,2]
[337168007,1725473440479,-6705.67868094,0.00024071,2]
[337168008,1725473440489,-250.0,0.00024108,2]
[337168009,1725473440500,-250.0,0.00024171,2]
[337168010,1725473440511,-250.0,0.00024235,2]
[337168011,1725473440522,-250.0,0.00024298,2]
[337168012,1725473440531,-250.0,0.00024362,2]
[337168013,1725473440540,-306.911496,0.00024431,2]
[337168014,1725473440549,-667.069035,0.00024658,2]
[337168015,1725473440559,-500.0,0.00024711,2]
[337168016,1725473440569,-425.11656054,0.00024711,2]
[337168017,1725473440579,-500.0,0.00024711,2]
[337168018,1725473440589,-179.53464614,0.00024711,2]
[337168019,1725473440600,-500.0,0.00024711,2]
[337168020,1725473440611,-236.72908875,0.00024711,2]
[337168021,1725473440623,-37917.89032539,0.00024712,3]
[337168022,1725473440640,-726.60516941,0.00024712,3]
[337168040,1725473443395,-3000.0,0.00024712,3]
[337168084,1725473485519,500.0,0.00027,120]
[337168086,1725473499619,500.0,0.00027,120]
[337168087,1725473511624,500.0,0.00027,120]
[337168088,1725473518963,500.0,0.00027,120]
[337168093,1725473848586,500.0,0.00027,120]
[337168106,1725474475873,10044.5705562,0.0002,2]
[337168107,1725474520190,20150.64281782,0.00014,4]
[337168109,1725474523700,17080.00962889,0.0002,2]
[337168227,1725474638582,-300.0,0.00023366,2]
[337168229,1725474638592,-24900.0,0.00023367,2]
[337168231,1725474638603,-250.0,0.00023449,2]
[337168233,1725474638614,-250.0,0.00023513,2]
[337168235,1725474638624,-250.0,0.00023578,2]
[337168237,1725474638634,-465.00000133,0.00023637,2]
[337168239,1725474638645,-250.0,0.00023642,2]
[337168241,1725474638655,-250.0,0.00023706,2]
[337168242,1725474638665,-250.0,0.00023771,2]
[337168244,1725474638674,-250.0,0.00023835,2]
[337168246,1725474638684,-153.0,0.00023841,2]
[337168248,1725474638695,-250.0,0.00023899,2]
[337168250,1725474638704,-250.0,0.00023963,2]
[337168251,1725474638714,-163.8898445,0.00024,2]
[337168252,1725474638723,-250.0,0.00024028,2]
[337168253,1725474638733,-250.0,0.00024092,2]
[337168254,1725474638743,-161.7050437,0.000241,2]
[337168255,1725474638753,-153.0,0.000241,2]
[337168256,1725474638762,-153.0,0.000241,2]
[337168257,1725474638771,-153.0,0.000241,2]
[337168258,1725474638781,-250.0,0.00024156,2]
[337168259,1725474638790,-250.0,0.00024221,2]
[337168260,1725474638799,-5867.46884584,0.00024249,2]
[337168261,1725474638808,-250.0,0.00024285,2]
[337168263,1725474638818,-250.0,0.00024349,2]
[337168264,1725474638827,-250.0,0.00024414,2]
[337168266,1725474638836,-250.0,0.00024478,2]
[337168268,1725474638845,-154.0215571,0.00024492,2]
[337168269,1725474638855,-250.0,0.00024542,2]
[337168270,1725474638865,-1000.0,0.00024581,2]
[337168271,1725474638874,-55555.0,0.00024581,3]
[337168272,1725474638884,-2063.52508563,0.0002459,2]
[337168273,1725474638896,-250.0,0.00024606,2]
[337168275,1725474638906,-258.9,0.0002465,3]
[337168276,1725474638915,-633.715583,0.00024658,2]
[337168278,1725474638925,-1035.6,0.0002466,3]
[337168280,1725474638934,-517.8,0.0002466,3]
[337168281,1725474638944,-776.73,0.0002466,3]
[337168283,1725474638953,-500.0,0.0002467,2]
[337168285,1725474638963,-500.0,0.0002467,2]
[337168286,1725474638972,-500.0,0.0002467,2]
[337168287,1725474638982,-266.50912197,0.0002467,2]
[337168288,1725474638991,-494.06667026,0.0002467,2]
[337168289,1725474639001,-630.0,0.0002467,2]
[337168290,1725474639010,-500.0,0.0002467,2]
[337168291,1725474639020,-500.0,0.0002467,2]
[337168292,1725474639029,-500.0,0.0002467,2]
[337168293,1725474639040,-500.0,0.0002467,2]
[337168294,1725474639050,-343.09816027,0.0002467,2]
[337168295,1725474639060,-500.0,0.0002467,2]
[337168296,1725474639069,-500.0,0.0002467,2]
[337168297,1725474639078,-500.0,0.0002467,2]
[337168298,1725474639089,-500.0,0.0002467,2]
[337168299,1725474639098,-500.0,0.0002467,2]
[337168300,1725474639108,-500.0,0.0002467,2]
[337168301,1725474639118,-500.0,0.0002467,2]
[337168302,1725474639127,-270.06371988,0.0002467,2]
[337168303,1725474639137,-300.0,0.0002467,2]
[337168304,1725474639151,-500.0,0.0002467,2]
[337168305,1725474639161,-500.0,0.0002467,2]
[337168306,1725474639170,-350.0,0.0002467,2]
[337168307,1725474639179,-250.0,0.00024671,2]
[337168308,1725474639190,-29199.15755281,0.00024671,15]
[337168309,1725474639200,-151.0,0.00024671,7]
[337168310,1725474639210,-151.0,0.00024671,7]
[337168311,1725474639219,-151.0,0.00024671,7]
[337168312,1725474639228,-143273.445443,0.00024671,3]
[337168313,1725474639239,-36708.148254,0.00024671,2]
[337168314,1725474639248,-16098.47975413,0.00024671,15]
[337168315,1725474639260,-61824.78766505,0.00024671,3]
[337168333,1725474640462,-7397.64949261,0.0002466,3]
[337168461,1725475838714,-250.0,0.00022792,2]
[337168462,1725475838725,-300.0,0.00022798,2]
[337168463,1725475838735,-24900.0,0.00022799,2]
[337168464,1725475838745,-250.0,0.00022855,2]
[337168465,1725475838754,-250.0,0.00022917,2]
[337168466,1725475838763,-184.909125,0.00022967,2]
[337168467,1725475838773,-250.0,0.0002298,2]
[337168468,1725475838784,-250.0,0.00023042,2]
[337168469,1725475838793,-250.0,0.00023105,2]
[337168470,1725475838804,-250.0,0.00023167,2]
[337168471,1725475838813,-250.0,0.0002323,2]
[337168472,1725475838824,-250.0,0.00023292,2]
[337168473,1725475838833,-250.0,0.00023355,2]
[337168474,1725475838843,-250.0,0.00023417,2]
[337168475,1725475838852,-250.0,0.0002348,2]
[337168476,1725475838865,-250.0,0.00023542,2]
[337168477,1725475838874,-1048.03036105,0.00023561,2]
[337168478,1725475838883,-250.0,0.00023605,2]
[337168479,1725475838893,-5134.03524011,0.0002363,2]
[337168480,1725475838907,-250.0,0.00023667,2]
[337168481,1725475838918,-250.0,0.0002373,2]
[337168482,1725475838928,-250.0,0.00023792,2]
[337168483,1725475838937,-250.0,0.00023855,2]
[337168484,1725475838948,-250.0,0.00023917,2]
[337168485,1725475838957,-250.0,0.0002398,2]
[337168486,1725475838967,-36459.98,0.00024,2]
[337168487,1725475838977,-1000.0,0.0002442,2]
[337168488,1725475838988,-5559.70314496,0.00024487,2]
[337168489,1725475838997,-1266.89,0.00024498,3]
[337168490,1725475839007,-500.0,0.00024506,2]
[337168491,1725475839017,-500.0,0.00024506,2]
[337168492,1725475839028,-500.0,0.00024506,2]
[337168493,1725475839038,-500.0,0.00024506,2]
[337168494,1725475839048,-500.0,0.00024506,2]
[337168495,1725475839058,-500.0,0.00024506,2]
[337168496,1725475839067,-500.0,0.00024506,2]
[337168497,1725475839077,-500.0,0.00024506,2]
[337168498,1725475839087,-500.0,0.00024506,2]